bitfinex-derivatives/quotes_BTCF0:USTF0_20250211
["timestamp","ask_amount","ask_price","bid_price","bid_amount"]
[1739249261958,0.7861,98091.0,98084.0,0.01165945]
[1739249262162,0.7861,98091.0,98085.0,0.01165945]
[1739249262351,0.7861,98091.0,98086.0,0.01165945]
[1739249262548,0.7861,98091.0,98083.0,0.005]
[1739249262752,0.7861,98091.0,98084.0,0.01165977]
[1739249262953,0.7861,98091.0,98083.0,0.005]
[1739249262954,0.2038639,98090.0,98083.0,0.005]
[1739249263151,0.2038639,98090.0,98084.0,0.001]
[1739249263954,0.2038639,98090.0,98085.0,0.01152119]
[1739249264155,0.2038639,98090.0,98084.0,0.004]
[1739249265061,0.2038639,98090.0,98084.0,0.003]
[1739249265261,0.2038639,98090.0,98085.0,0.003]
[1739249265560,0.2723439,98090.0,98086.0,0.01142072]
[1739249265761,0.2723439,98090.0,98087.0,0.01142072]
[1739249265953,0.2723439,98090.0,98085.0,0.003]
[1739249266150,0.2723439,98090.0,98086.0,0.01142387]
[1739249266353,0.2723439,98090.0,98087.0,0.01142387]
[1739249266556,0.2723439,98090.0,98085.0,0.004]
[1739249266756,0.06848,98090.0,98086.0,0.01142125]
[1739249266962,0.72216001,98091.0,98087.0,0.01142125]
[1739249267166,0.7216,98091.0,98088.0,0.01142125]
[1739249267361,0.7216,98091.0,98089.0,0.01142125]
[1739249267549,0.7216,98091.0,98085.0,0.2048742]
[1739249267550,0.7216,98091.0,98090.0,0.01142125]
[1739249267954,0.7216,98091.0,98085.0,0.2048742]
[1739249268155,0.7216,98091.0,98086.0,0.0113089]
[1739249268454,0.7216,98091.0,98087.0,0.0113089]
[1739249268654,0.7216,98091.0,98085.0,0.2068742]
[1739249268857,0.7216,98091.0,98086.0,0.01130949]
[1739249269055,0.7216,98091.0,98085.0,0.2068742]
[1739249269863,0.3628,98091.0,98082.0,0.00015297]
[1739249270255,0.3628,98091.0,98090.0,0.2038639]
[1739249270455,0.002,98091.0,98090.0,0.2038639]
[1739249270657,0.001,98091.0,98090.0,0.2038639]
[1739249271261,0.001,98091.0,98090.0,0.21522047]
[1739249271965,0.002,98091.0,98090.0,0.2038639]
[1739249279077,0.002,98091.0,98090.0,0.21517805]
[1739249279779,0.002,98091.0,98090.0,0.21517784]
[1739249280371,0.002,98091.0,98090.0,0.21518106]
[1739249281475,0.002,98091.0,98090.0,0.21521794]
[1739249282182,0.002,98091.0,98090.0,0.21517954]
[1739249283073,0.002,98091.0,98090.0,0.2038639]
[1739249292788,0.002,98091.0,98084.0,0.3608]
[1739249292992,0.002,98091.0,98085.0,0.2038739]
[1739249293991,0.2038675,98089.0,98084.0,0.3608]
[1739249295294,0.2038675,98089.0,98084.0,0.003]
[1739249295597,0.2038702,98087.0,98085.0,0.001]
[1739249295780,0.09968,98086.0,98085.0,0.001]
[1739249296188,0.48968,98086.0,98084.0,0.004]
[1739249296383,0.2038743,98085.0,98084.0,0.004]
[1739249296894,0.2038768,98084.0,98082.0,0.00015297]
[1739249297092,0.3608,98083.0,98082.0,0.00015297]
[1739249299179,0.3608,98083.0,98082.0,0.01546072]
[1739249299585,0.3608,98083.0,98082.0,0.01646072]
[1739249299786,0.3608,98083.0,98082.0,0.01646047]
[1739249300291,0.3608,98083.0,98082.0,0.00515297]
[1739249301291,0.3608,98091.0,98089.0,0.2038649]
[1739249301885,0.15210665,98095.0,98085.0,0.3608]
[1739249302091,0.15210665,98095.0,98093.0,0.203856]
[1739249302297,0.15210665,98095.0,98093.0,0.564656]
[1739249302488,0.18295499,98106.0,98094.0,0.0303]
[1739249302798,0.15275799,98098.0,98096.0,0.08237096]
[1739249302991,0.15275799,98098.0,98094.0,0.0303]
[1739249303394,0.002,98095.0,98094.0,0.2341556]
[1739249303591,0.006,98095.0,98094.0,0.2341556]
[1739249303994,0.004,98095.0,98094.0,0.2341556]
[1739249304190,0.004,98095.0,98094.0,0.24545268]
[1739249304396,0.004,98095.0,98094.0,0.24544895]
[1739249305098,0.004,98095.0,98094.0,0.2341556]
[1739249305303,0.15375799,98098.0,98097.0,0.2038493]
[1739249305996,0.15275799,98098.0,98097.0,0.2038493]
[1739249306587,0.0315,98116.0,98106.0,0.2038296]
[1739249307002,0.0315,98116.0,98106.0,0.28620056]
[1739249307197,0.39,98115.0,98106.0,0.28620056]
[1739249308995,0.39,98115.0,98107.0,0.2038273]
[1739249309189,0.0335,98116.0,98107.0,0.2038273]
[1739249309391,0.001,98115.0,98107.0,0.2038273]
[1739249309888,0.002,98115.0,98107.0,0.2038273]
[1739249310091,0.001,98115.0,98107.0,0.2038273]
[1739249310395,0.002,98115.0,98108.0,0.2038248]
[1739249310805,0.002,98115.0,98109.0,0.2038237]
[1739249312203,0.0315,98116.0,98109.0,0.2038237]
[1739249312403,0.004,98115.0,98109.0,0.2038237]
[1739249312794,0.003,98115.0,98109.0,0.2038237]
[1739249312995,0.005,98115.0,98109.0,0.2038237]
[1739249313196,0.006,98115.0,98109.0,0.2038237]
[1739249316414,0.006,98115.0,98110.0,0.01165146]
[1739249316599,0.006,98115.0,98111.0,0.01165146]
[1739249316803,0.006,98115.0,98112.0,0.01165146]
[1739249317001,0.006,98115.0,98113.0,0.01165146]
[1739249317201,0.006,98115.0,98109.0,0.2038237]
[1739249317398,0.006,98115.0,98110.0,0.01165019]
[1739249317712,0.006,98115.0,98111.0,0.01165019]
[1739249317896,0.006,98115.0,98112.0,0.01165019]
[1739249318098,0.006,98115.0,98113.0,0.01165019]
[1739249318401,0.006,98115.0,98109.0,0.2038237]
[1739249318607,0.006,98115.0,98110.0,0.01164304]
[1739249318806,0.006,98115.0,98111.0,0.01164304]
[1739249318992,0.004,98115.0,98112.0,0.01164304]
[1739249319193,0.006,98115.0,98109.0,0.2038237]
[1739249319405,0.008,98115.0,98110.0,0.01164241]
[1739249319593,0.008,98115.0,98111.0,0.01164241]
[1739249319803,0.008,98115.0,98109.0,0.2038237]
[1739249319804,0.008,98115.0,98112.0,0.01164241]
[1739249320003,0.008,98115.0,98110.0,0.2038215]
[1739249320204,0.009,98115.0,98111.0,0.01164662]
[1739249320398,0.009,98115.0,98110.0,0.2038215]
[1739249320399,0.009,98115.0,98112.0,0.01164662]
[1739249320601,0.009,98115.0,98113.0,0.01164662]
[1739249320804,0.009,98115.0,98114.0,0.5762522]
[1739249320805,0.006,98115.0,98114.0,0.5762522]
[1739249321003,0.3913,98129.0,98114.0,0.5762522]
[1739249321004,0.3608,98129.0,98128.0,0.2037849]
[1739249321402,0.3608,98129.0,98128.0,0.21550064]
[1739249322902,0.3608,98129.0,98128.0,0.21547478]
[1739249323113,0.3718,98129.0,98128.0,0.21647478]
[1739249323410,0.3768,98129.0,98128.0,0.2047849]
[1739249326406,0.3768,98129.0,98128.0,0.21632009]
[1739249329017,0.3768,98129.0,98128.0,0.21633883]
[1739249330418,0.3718,98129.0,98128.0,0.21633883]
[1739249330610,0.3718,98129.0,98128.0,0.21533883]
[1739249330611,0.3698,98129.0,98128.0,0.21533883]
[1739249331516,0.3698,98129.0,98128.0,0.01155393]
[1739249331719,0.3698,98129.0,98119.0,0.08237096]
[1739249331915,0.3698,98129.0,98127.0,0.2037854]
[1739249332110,0.3648,98129.0,98128.0,0.01373061]
[1739249332310,0.25245,98129.0,98128.0,0.01373061]
[1739249332511,0.183475,98166.0,98128.0,0.01373061]
[1739249332512,0.0349,98154.0,98153.0,0.203733]
[1739249332726,0.0349,98154.0,98153.0,0.21539857]
[1739249333218,0.0349,98154.0,98153.0,0.21539719]
[1739249333624,0.0349,98154.0,98153.0,0.01166419]
[1739249333914,0.003,98154.0,98153.0,0.01166419]
[1739249334311,0.203733,98153.0,98148.0,0.3608]
[1739249334511,0.203733,98153.0,98149.0,0.01152891]
[1739249334715,0.203733,98153.0,98150.0,0.01152891]
[1739249334907,0.003,98154.0,98148.0,0.3608]
[1739249335112,0.003,98154.0,98149.0,0.01145029]
[1739249335317,0.006,98154.0,98148.0,0.3608]
[1739249335512,0.003,98154.0,98148.0,0.3678]
[1739249335917,0.3608,98158.0,98150.0,0.002]
[1739249336310,0.2037266,98157.0,98150.0,0.002]
[1739249336716,0.2037266,98157.0,98149.0,0.006]
[1739249338016,0.2037266,98157.0,98148.0,0.3638]
[1739249338224,0.2037266,98157.0,98150.0,0.005]
[1739249338521,0.2037266,98157.0,98150.0,0.007]
[1739249339024,0.2037266,98157.0,98149.0,0.008]
[1739249339623,0.2037266,98157.0,98148.0,0.5651426]
[1739249339826,0.2037284,98156.0,98150.0,0.007]
[1739249340216,0.2037284,98156.0,98150.0,0.005]
[1739249340430,0.2037372,98151.0,98150.0,0.005]
[1739249341531,0.2037372,98151.0,98149.0,0.008]
[1739249341927,0.2037496,98145.0,98144.0,0.00015289]
[1739249343329,0.2037496,98145.0,98144.0,0.00315289]
[1739249344622,0.5655496,98145.0,98144.0,0.01215289]
[1739249345824,0.5655496,98145.0,98144.0,0.01015289]
[1739249346129,0.2037787,98131.0,98130.0,0.08237096]
[1739249346422,0.2037787,98131.0,98115.0,0.0685]
[1739249346423,0.3608,98137.0,98126.0,0.2037882]
[1739249346617,0.0371,98136.0,98127.0,0.08237096]
[1739249346816,0.0371,98136.0,98128.0,0.2151213]
[1739249347020,0.0371,98136.0,98128.0,0.2037844]
[1739249347219,0.0371,98136.0,98129.0,0.01133922]
[1739249347423,0.0371,98136.0,98130.0,0.004]
[1739249347829,0.0371,98136.0,98131.0,0.01147268]
[1739249348033,0.0371,98136.0,98130.0,0.004]
[1739249348218,0.0371,98136.0,98131.0,0.01147264]
[1739249348423,0.0381,98136.0,98132.0,0.01147264]
[1739249348725,0.0381,98136.0,98130.0,0.004]
[1739249348726,0.0381,98136.0,98133.0,0.01152288]
[1739249348922,0.0381,98136.0,98134.0,0.01152288]
[1739249349120,0.0371,98136.0,98130.0,0.004]
[1739249349320,0.0381,98136.0,98131.0,0.01152632]
[1739249349522,0.0391,98136.0,98132.0,0.01152632]
[1739249349717,0.0391,98136.0,98130.0,0.014]
[1739249349718,0.0391,98136.0,98133.0,0.01152632]
[1739249349917,0.2037787,98131.0,98130.0,0.014]
[1739249350115,0.2037787,98131.0,98130.0,0.03554482]
[1739249350418,0.2037787,98131.0,98130.0,0.02411049]
[1739249350825,0.2037787,98131.0,98130.0,0.01011049]
[1739249351025,0.0347,98135.0,98123.0,0.18136033]
[1739249351331,0.3608,98129.0,98123.0,0.18136033]
[1739249351517,0.2384714,98135.0,98123.0,0.18136033]
[1739249351824,0.001,98131.0,98130.0,0.012]
[1739249353430,0.001,98131.0,98130.0,0.017]
[1739249353629,0.001,98131.0,98130.0,0.02837741]
[1739249354130,0.001,98131.0,98130.0,0.01637741]
[1739249354521,0.001,98131.0,98130.0,0.005]
[1739249354931,0.001,98131.0,98130.0,0.019]
[1739249355931,0.001,98131.0,98130.0,0.017]
[1739249356322,0.2037786,98132.0,98130.0,0.017]
[1739249356626,0.0371,98136.0,98130.0,0.017]
[1739249357124,0.001,98131.0,98130.0,0.017]
[1739249357325,0.001,98131.0,98130.0,0.005]
[1739249357625,0.001,98131.0,98130.0,0.015]
[1739249358127,0.001,98131.0,98130.0,0.005]
[1739249358333,0.001,98131.0,98130.0,0.015]
[1739249358827,0.2037774,98132.0,98130.0,0.015]
[1739249359034,0.2037774,98132.0,98130.0,0.016]
[1739249359332,0.2037774,98132.0,98130.0,0.011]
[1739249359531,0.0371,98136.0,98130.0,0.016]
[1739249360626,0.0371,98136.0,98130.0,0.014]
[1739249361222,0.56512271,98139.0,98130.0,0.014]
[1739249361535,0.5645475,98147.0,98137.0,0.2037645]
[1739249361832,0.5645475,98147.0,98138.0,0.2793632]
[1739249361833,0.00052001,98147.0,98138.0,0.2793632]
[1739249362028,0.0378,98149.0,98138.0,0.2793632]
[1739249362437,0.001,98139.0,98138.0,0.2793632]
[1739249362632,0.001,98139.0,98138.0,0.29064258]
[1739249362828,5.046e-05,98151.0,98138.0,0.08687938]
[1739249363030,5.046e-05,98151.0,98140.0,0.2037599]
[1739249363332,5.046e-05,98151.0,98139.0,0.01127938]
[1739249363333,5.046e-05,98151.0,98149.0,0.2037409]
[1739249365629,5.046e-05,98151.0,98149.0,0.2057409]
[1739249365936,5.046e-05,98151.0,98149.0,0.2077409]
[1739249366938,5.046e-05,98151.0,98150.0,0.01138397]
[1739249367441,5.046e-05,98151.0,98149.0,0.2077409]
[1739249367634,5.046e-05,98151.0,98150.0,0.01141729]
[1739249368138,0.15224575,98166.0,98150.0,0.01241729]
[1739249368335,0.15224575,98166.0,98165.0,0.2037081]
[1739249368534,0.15224575,98166.0,98165.0,0.2151242]
[1739249368733,0.15224575,98166.0,98165.0,0.2037081]
[1739249369636,0.15524575,98166.0,98165.0,0.2037081]
[1739249369837,0.15524575,98166.0,98165.0,0.21417039]
[1739249370928,0.15724575,98166.0,98165.0,0.21517039]
[1739249371239,0.183475,98172.0,98170.0,0.2036978]
[1739249371434,0.3608,98184.0,98183.0,0.2036708]
[1739249372832,0.3658,98184.0,98183.0,0.2036708]
[1739249373225,0.3658,98184.0,98183.0,0.2046708]
[1739249373735,0.3658,98184.0,98183.0,0.001]
[1739249374631,0.7558,98184.0,98183.0,0.001]
[1739249375433,0.7558,98184.0,98183.0,0.2046708]
[1739249375631,0.3658,98184.0,98183.0,0.2046708]
[1739249381030,0.3658,98184.0,98183.0,0.001]
[1739249382237,0.43596,98184.0,98183.0,0.001]
[1739249382439,0.43596,98184.0,98174.0,0.0001528]
[1739249382440,0.2036853,98176.0,98175.0,0.00997863]
[1739249382742,0.2036853,98176.0,98149.0,0.46996]
[1739249382743,0.2037102,98164.0,98149.0,0.3608]
[1739249382941,0.5645102,98164.0,98155.0,0.203727]
[1739249383343,0.5645102,98164.0,98163.0,0.01162292]
[1739249383843,0.2037231,98158.0,98154.0,0.0001528]
[1739249384044,0.3608,98155.0,98154.0,0.0001528]
[1739249385050,0.3608,98155.0,98154.0,0.0041528]
[1739249385740,0.3991,98155.0,98154.0,0.0041528]
[1739249385941,0.4357,98155.0,98154.0,0.0041528]
[1739249386252,0.4357,98155.0,98154.0,0.0101528]
[1739249387847,0.4357,98155.0,98154.0,0.0081528]
[1739249388437,0.4357,98155.0,98154.0,0.0061528]
[1739249388633,0.4357,98155.0,98154.0,0.0101528]
[1739249389042,0.4357,98155.0,98154.0,0.0041528]
[1739249389238,0.4357,98155.0,98154.0,0.0051528]
[1739249389940,0.4357,98155.0,98154.0,0.0031528]
[1739249391243,0.3974,98155.0,98154.0,0.0031528]
[1739249393648,0.3974,98155.0,98149.0,0.01016853]
[1739249393649,0.3974,98155.0,98130.0,0.08237096]
[1739249393846,0.3608,98145.0,98134.0,0.18136033]
[1739249395242,0.3618,98145.0,98137.0,0.2037648]
[1739249396642,0.2037568,98142.0,98134.0,0.18836033]
[1739249396844,0.2037568,98142.0,98137.0,0.013]
[1739249397244,0.2037787,98131.0,98119.0,0.30229533]
[1739249397444,0.5646015,98120.0,98119.0,0.30165533]
[1739249398455,0.2038078,98117.0,98116.0,0.24132707]
[1739249399747,0.2038078,98117.0,98116.0,0.25632707]
[1739249399956,0.2048078,98117.0,98116.0,0.25632707]
[1739249400656,0.2048078,98117.0,98116.0,0.25232707]
[1739249400845,0.2058078,98117.0,98116.0,0.25232707]
[1739249403143,0.2058078,98117.0,98116.0,0.011]
[1739249404660,0.2038202,98111.0,98110.0,0.01053114]
[1739249404852,0.6355402,98111.0,98110.0,0.01053114]
[1739249406254,0.5646202,98111.0,98110.0,0.01053114]
[1739249406652,0.002,98117.0,98110.0,0.01053114]
[1739249406856,0.002,98117.0,98111.0,0.0361]
[1739249407052,0.002,98117.0,98113.0,0.3608]
[1739249407053,0.001,98117.0,98113.0,0.3608]
[1739249407261,0.5646003,98121.0,98114.0,0.0746]
[1739249407456,0.2038056,98119.0,98114.0,0.0746]
[1739249408054,0.001,98117.0,98114.0,0.0746]
[1739249408255,0.002,98117.0,98114.0,0.0746]
[1739249408663,0.001,98117.0,98114.0,0.0746]
[1739249408862,0.001,98117.0,98114.0,0.0756]
[1739249409860,0.2058056,98119.0,98114.0,0.0876]
[1739249410061,0.002,98119.0,98114.0,0.2914136]
[1739249410452,0.002,98119.0,98114.0,0.0756]
[1739249410652,0.002,98117.0,98115.0,0.2038119]
[1739249411354,0.001,98117.0,98115.0,0.2038119]
[1739249411567,0.002,98119.0,98118.0,0.2038057]
[1739249412068,0.001,98119.0,98118.0,0.2038057]
[1739249412965,0.36232918,98140.0,98128.0,0.2037849]
[1739249413165,0.2037648,98138.0,98128.0,0.2037849]
[1739249414466,0.00152918,98140.0,98128.0,0.21382163]
[1739249414665,0.00152918,98140.0,98128.0,0.21782163]
[1739249414965,0.00152918,98140.0,98128.0,0.21882163]
[1739249416061,0.20528998,98140.0,98128.0,0.21882163]
[1739249416262,0.0011528,98129.0,98128.0,0.21982163]
[1739249419666,0.0011528,98129.0,98128.0,0.01603673]
[1739249420473,0.2038111,98116.0,98114.0,0.0746]
[1739249420865,0.2038111,98116.0,98114.0,0.0363]
[1739249421183,0.3608,98121.0,98102.0,0.0374]
[1739249421359,0.3608,98113.0,98102.0,0.0761]
[1739249421559,0.26939643,98113.0,98110.0,0.0101521]
[1739249421764,0.3608,98139.0,98127.0,0.2037863]
[1739249421958,0.3608,98139.0,98130.0,0.2037808]
[1739249423565,0.3608,98139.0,98130.0,0.003]
[1739249423766,0.3608,98139.0,98130.0,0.004]
[1739249424072,0.3608,98139.0,98137.0,0.2037657]
[1739249425880,0.00015288,98144.0,98137.0,0.2037657]
[1739249426067,0.00015288,98144.0,98130.0,0.01320811]
[1739249426068,0.00015288,98144.0,98141.0,0.2037577]
[1739249427867,0.00015288,98144.0,98142.0,0.2037549]
[1739249428071,0.00515288,98144.0,98142.0,0.2037549]
[1739249429985,0.00015288,98144.0,98142.0,0.2037549]
[1739249430287,0.00615288,98144.0,98142.0,0.2047549]
[1739249432576,0.00615288,98144.0,98142.0,0.21507721]
[1739249441398,0.0365,98143.0,98142.0,0.21507721]
[1739249442501,0.0365,98143.0,98142.0,0.01132231]
[1739249442502,0.2402538,98143.0,98142.0,0.01132231]
[1739249442686,0.1084,98143.0,98142.0,0.01132231]
[1739249443088,0.1144,98143.0,98142.0,0.01132231]
[1739249446592,0.0779,98143.0,98142.0,0.01132231]
[1739249451895,0.2037725,98134.0,98133.0,0.00015288]
[1739249453306,0.2037791,98131.0,98121.0,0.2037992]
[1739249453506,0.2037838,98129.0,98121.0,0.2037992]
[1739249453905,0.44317096,98140.0,98117.0,0.3608]
[1739249454103,0.2037892,98126.0,98117.0,0.3608]
[1739249454306,0.0354,98125.0,98117.0,0.3608]
[1739249454505,0.0354,98125.0,98117.0,0.5646064]
[1739249454704,0.0354,98125.0,98121.0,0.009]
[1739249455713,0.0364,98125.0,98119.0,0.2038028]
[1739249456309,0.0354,98125.0,98119.0,0.2038028]
[1739249456611,0.0374,98125.0,98121.0,0.008]
[1739249457915,0.0374,98125.0,98119.0,0.2118028]
[1739249458609,0.0364,98125.0,98119.0,0.2038028]
[1739249458916,0.0374,98125.0,98121.0,0.007]
[1739249459307,0.0364,98125.0,98121.0,0.007]
[1739249459607,0.0374,98125.0,98119.0,0.2108028]
[1739249460008,0.0374,98125.0,98122.0,0.2037961]
[1739249461820,0.0364,98125.0,98122.0,0.2037961]
[1739249462011,0.0364,98125.0,98122.0,0.2117961]
[1739249462214,0.0374,98125.0,98122.0,0.2117961]
[1739249469914,0.002,98125.0,98124.0,0.2037932]
[1739249470220,0.5787,98151.0,98123.0,0.3608]
[1739249470221,0.2037542,98143.0,98133.0,0.203774]
[1739249470422,0.2037563,98142.0,98137.0,0.3608]
[1739249472022,0.2067563,98142.0,98137.0,0.3608]
[1739249472423,0.2067563,98142.0,98137.0,0.5645653]
[1739249473113,0.2067563,98142.0,98138.0,0.2037634]
[1739249473514,0.2067563,98142.0,98140.0,0.20376]
[1739249474121,0.2037563,98142.0,98140.0,0.20376]
[1739249474327,0.2067563,98142.0,98140.0,0.20376]
[1739249475112,0.2077563,98142.0,98140.0,0.20476]
[1739249476118,0.2077563,98142.0,98140.0,0.20576]
[1739249491420,0.004,98142.0,98140.0,0.20576]
[1739249493221,0.004,98142.0,98140.0,0.002]
[1739249493427,0.0373,98141.0,98140.0,0.002]
[1739249493622,0.0744,98141.0,98140.0,0.002]
[1739249493927,0.5,98141.0,98140.0,0.002]
[1739249494329,0.11,98141.0,98140.0,0.002]
[1739249495428,0.11,98141.0,98140.0,0.001]
[1739249495634,0.115,98141.0,98140.0,0.002]
[1739249497936,0.505,98141.0,98140.0,0.002]
[1739249498938,0.55455096,98141.0,98140.0,0.002]
[1739249502734,0.55455096,98141.0,98133.0,0.01010467]
[1739249502939,0.2037725,98134.0,98123.0,0.5645945]
[1739249503132,0.3608,98137.0,98123.0,0.5645945]
[1739249503133,0.2037865,98128.0,98123.0,0.5645945]
[1739249503340,0.3608,98137.0,98123.0,0.5747706]
[1739249503542,0.2037911,98126.0,98123.0,0.5747706]
[1739249503937,0.2037911,98126.0,98123.0,0.5757706]
[1739249505138,0.203792,98125.0,98123.0,0.5757706]
[1739249505542,0.203792,98125.0,98123.0,0.5747706]
[1739249505841,0.203792,98125.0,98123.0,0.5827706]
[1739249506048,0.203792,98125.0,98123.0,0.2219706]
[1739249506748,0.204792,98125.0,98123.0,0.2219706]
[1739249507837,0.204792,98125.0,98123.0,0.0181761]
[1739249508040,0.205792,98125.0,98123.0,0.0181761]
[1739249508240,0.205792,98125.0,98123.0,0.008]
[1739249509441,0.205792,98125.0,98101.0,0.3608]
[1739249509442,0.2038161,98113.0,98103.0,0.0383]
[1739249511046,0.2038161,98113.0,98112.0,0.01057924]
[1739249511243,0.2038161,98113.0,98112.0,0.00015288]
[1739249511840,0.2058161,98113.0,98112.0,0.00115288]
[1739249512343,0.2068161,98113.0,98112.0,0.00115288]
[1739249512543,0.2048161,98113.0,98112.0,0.00015288]
[1739249512744,0.2068161,98113.0,98112.0,0.00015288]
[1739249513253,0.2068161,98113.0,98112.0,0.01052817]
[1739249513447,0.2088161,98113.0,98112.0,0.00015288]
[1739249515453,0.2038161,98113.0,98112.0,0.00015288]
[1739249515653,0.2078161,98113.0,98112.0,0.00015288]
[1739249516944,0.2088161,98113.0,98112.0,0.00015288]
[1739249518656,0.005,98113.0,98112.0,0.00015288]
[1739249519355,0.005,98113.0,98112.0,0.03815288]
[1739249519557,0.3608,98116.0,98113.0,0.2038161]
[1739249520445,0.00015288,98122.0,98113.0,0.2038161]
[1739249520655,0.00015288,98122.0,98112.0,0.03815288]
[1739249520656,0.20395108,98122.0,98112.0,0.03815288]
[1739249520846,0.2038154,98114.0,98112.0,0.00015288]
[1739249523146,0.2068154,98114.0,98112.0,0.00015288]
[1739249524957,0.2078154,98114.0,98112.0,0.00015288]
[1739249526257,0.2038154,98114.0,98112.0,0.00015288]
[1739249526457,0.2068154,98114.0,98112.0,0.00015288]
[1739249529362,0.3608,98180.0,98114.0,0.271307]
[1739249529561,0.01045623,98195.0,98176.0,0.2036853]
[1739249529764,0.3608,98204.0,98176.0,0.7216]
[1739249529975,0.04473065,98220.0,98218.0,0.2035982]
[1739249530264,0.04473065,98220.0,98198.0,0.3608]
[1739249530265,0.24512443,98227.0,98219.0,0.7216]
[1739249530475,0.04298829,98227.0,98226.0,0.3727816]
[1739249530658,0.05000403,98280.0,98227.0,0.31781171]
[1739249530659,0.00015279,98233.0,98227.0,0.31781171]
[1739249530851,0.05000403,98280.0,98232.0,0.3608]
[1739249530852,0.05000403,98270.0,98232.0,0.3608]
[1739249531055,0.2035013,98265.0,98262.0,0.3608]
[1739249531260,0.3608,98274.0,98250.0,0.3608]
[1739249531460,0.2035292,98252.0,98250.0,0.3608]
[1739249531661,0.3608,98264.0,98250.0,0.3608]
[1739249531860,0.203527,98253.0,98250.0,0.3608]
[1739249532559,0.3608,98257.0,98242.0,0.37104677]
[1739249532968,0.2035464,98243.0,98242.0,0.37104677]
[1739249533666,0.2035464,98243.0,98242.0,0.33604677]
[1739249534058,0.2035464,98243.0,98230.0,0.00092]
[1739249534263,0.2035464,98243.0,98220.0,0.07601904]
[1739249534264,0.203592,98221.0,98220.0,0.07601904]
[1739249534460,0.2036106,98212.0,98211.0,0.07601904]
[1739249534765,0.2036193,98208.0,98202.0,0.07601904]
[1739249535064,0.3608,98221.0,98202.0,0.07601904]
[1739249535065,0.2036273,98204.0,98202.0,0.07601904]
[1739249535265,0.2036314,98202.0,98201.0,0.07136]
[1739249535657,0.2036314,98202.0,98201.0,0.37136]
[1739249535858,0.2036314,98202.0,98201.0,0.07136]
[1739249536465,0.2036314,98202.0,98201.0,0.18143799]
[1739249537670,0.2056314,98202.0,98201.0,0.18443799]
[1739249539467,0.002,98202.0,98201.0,0.18443799]
[1739249540755,0.002,98202.0,98201.0,0.003]
[1739249541556,0.2036224,98207.0,98201.0,0.003]
[1739249541763,0.2026224,98207.0,98201.0,0.003]
[1739249542664,0.2026224,98207.0,98199.0,0.07112]
[1739249542861,0.2036224,98207.0,98201.0,0.003]
[1739249543669,0.001,98207.0,98201.0,0.003]
[1739249543866,0.34251424,98213.0,98201.0,0.004]
[1739249544083,0.3608,98223.0,98205.0,0.3608]
[1739249544369,0.2035984,98218.0,98215.0,0.3608]
[1739249545672,0.2035984,98218.0,98215.0,0.3678]
[1739249545673,0.2055984,98218.0,98215.0,0.3678]
[1739249546674,0.2036023,98216.0,98215.0,0.007]
[1739249548067,0.2036023,98216.0,98215.0,0.002]
[1739249548364,0.2046023,98216.0,98215.0,0.006]
[1739249548564,0.002,98216.0,98215.0,0.009]
[1739249549465,0.2035895,98223.0,98215.0,0.44104]
[1739249549665,0.2035895,98223.0,98215.0,0.45400886]
[1739249550867,0.2055895,98223.0,98215.0,0.45300886]
[1739249551068,0.002,98223.0,98215.0,0.45300886]
[1739249551271,0.2035932,98221.0,98215.0,0.45300886]
[1739249551868,0.002,98223.0,98215.0,0.45300886]
[1739249552069,0.002,98223.0,98216.0,0.01272992]
[1739249552269,0.002,98223.0,98217.0,0.01272992]
[1739249552466,0.002,98223.0,98218.0,0.01272992]
[1739249552467,0.001,98221.0,98218.0,0.01272992]
[1739249552771,0.001,98221.0,98219.0,0.01272992]
[1739249552977,0.001,98221.0,98220.0,0.01272992]
[1739249553472,0.002,98221.0,98220.0,0.08384992]
[1739249553874,0.002,98221.0,98220.0,0.08384935]
[1739249554174,0.001,98221.0,98220.0,0.08784935]
[1739249554968,0.002,98221.0,98220.0,0.09384935]
[1739249556570,0.002,98221.0,98215.0,0.01360886]
[1739249556773,0.002,98221.0,98201.0,0.3608]
[1739249556774,0.3608,98216.0,98210.0,0.07601904]
[1739249556978,0.2036127,98211.0,98210.0,0.07601904]
[1739249557274,0.002,98221.0,98210.0,0.3608]
[1739249557578,0.001,98221.0,98218.0,0.3608]
[1739249557777,0.002,98221.0,98215.0,0.009]
[1739249558075,0.203604,98216.0,98215.0,0.009]
[1739249558378,0.203604,98216.0,98215.0,0.006]
[1739249558567,0.2000617,98216.0,98213.0,0.30165533]
[1739249560470,0.2010617,98216.0,98213.0,0.30165533]
[1739249560671,0.2020617,98216.0,98215.0,0.4265625]
[1739249562770,0.5628617,98216.0,98215.0,0.4265625]
[1739249563075,0.001,98216.0,98215.0,0.7873625]
[1739249564171,0.204604,98216.0,98215.0,0.7873625]
[1739249564367,0.204604,98216.0,98215.0,0.79864477]
[1739249565185,0.07601904,98230.0,98215.0,1.31086929]
[1739249565482,0.0508945,98228.0,98216.0,0.01128227]
[1739249565669,0.0508945,98228.0,98217.0,0.01128227]
[1739249565872,0.0508945,98228.0,98218.0,0.01128227]
[1739249566179,0.2035941,98220.0,98219.0,0.01135905]
[1739249567380,0.2045941,98220.0,98219.0,0.01135905]
[1739249568182,0.2055941,98220.0,98219.0,0.002]
[1739249568376,0.2055941,98220.0,98219.0,0.01344343]
[1739249569987,0.2055941,98220.0,98219.0,0.95223045]
[1739249570286,0.2055941,98220.0,98219.0,0.95220745]
[1739249570882,0.2055941,98220.0,98219.0,0.95220641]
[1739249572982,0.2055941,98220.0,98219.0,0.43998189]
[1739249573987,0.2055941,98220.0,98219.0,0.44008876]
[1739249574380,0.002,98220.0,98219.0,0.44008876]
[1739249574889,0.002,98220.0,98219.0,0.44006597]
[1739249578786,0.002,98220.0,98219.0,0.4285625]
[1739249578987,0.002,98220.0,98219.0,0.44010973]
[1739249581495,0.002,98220.0,98219.0,0.3045625]
[1739249581884,0.002,98220.0,98219.0,0.1805625]
[1739249582096,0.2036086,98213.0,98212.0,0.36213944]